bitfinex/quotes_BTCUSD_20220306
["timestamp","ask_amount","ask_price","bid_price","bid_amount"]
[1646536340369,0.16082901,39563.0,39560.0,0.20635107]
[1646536340776,0.16082901,39563.0,39558.0,0.2578167]
[1646536340777,0.16082901,39563.0,39559.0,0.20635107]
[1646536341270,0.36810676,39563.0,39559.0,0.20635107]
[1646536344323,0.36810676,39563.0,39558.0,0.00022252]
[1646536344324,0.36810676,39563.0,39558.0,0.20657359]
[1646536344523,0.36810676,39563.0,39558.0,0.20635107]
[1646536345123,0.36810676,39563.0,39560.0,1.278704]
[1646536345524,0.36810676,39563.0,39560.0,1.273704]
[1646536347025,0.16082901,39563.0,39560.0,1.273704]
[1646536347669,0.16082901,39563.0,39560.0,1.48005507]
[1646536348270,0.16082901,39563.0,39560.0,1.273704]
[1646536348475,0.36810676,39563.0,39560.0,1.273704]
[1646536353430,0.16082901,39563.0,39560.0,1.273704]
[1646536363690,0.16082901,39563.0,39560.0,1.2732609]
[1646536363988,0.14803371,39563.0,39560.0,1.2732609]
[1646536367722,0.14803371,39563.0,39560.0,1.4797207]
[1646536367924,0.14803371,39563.0,39560.0,1.47972341]
[1646536368122,0.14803371,39563.0,39560.0,1.2732609]
[1646536368324,0.14803371,39563.0,39560.0,1.47972585]
[1646536368525,0.14803371,39563.0,39560.0,1.2732609]
[1646536368823,0.14803371,39563.0,39560.0,1.47972518]
[1646536369025,0.14803371,39563.0,39560.0,1.47972527]
[1646536369223,0.14803371,39563.0,39560.0,1.2732609]
[1646536369824,0.14803371,39563.0,39560.0,1.47972627]
[1646536370068,0.14803371,39563.0,39560.0,1.2732609]
[1646536370268,0.14803371,39563.0,39560.0,1.4797273]
[1646536370473,0.14803371,39563.0,39560.0,1.2732609]
[1646536370671,0.14803371,39563.0,39560.0,1.47972955]
[1646536370871,0.14803371,39563.0,39560.0,1.2732609]
[1646536371270,0.14803371,39563.0,39560.0,1.47973209]
[1646536371473,0.14803371,39563.0,39560.0,1.2732609]
[1646536374128,0.35532589,39563.0,39560.0,1.2732609]
[1646536374428,0.35532563,39563.0,39560.0,1.2732609]
[1646536374627,0.35532407,39563.0,39560.0,1.2732609]
[1646536374831,0.14803371,39563.0,39562.0,0.19234159]
[1646536375029,0.12055636,39561.0,39560.0,1.4797616]
[1646536376432,0.12055636,39561.0,39560.0,1.4796296]
[1646536378677,0.12055636,39561.0,39560.0,1.2731289]
[1646536381830,0.12055636,39561.0,39560.0,1.8562186]
[1646536382233,0.12055636,39561.0,39560.0,1.4796296]
[1646536382428,0.12055636,39561.0,39560.0,1.8562186]
[1646536382834,0.12055636,39561.0,39560.0,1.4796296]
[1646536396192,0.12055636,39561.0,39560.0,1.8562186]
[1646536399435,0.12055636,39561.0,39560.0,1.4796296]
[1646536399635,0.12055636,39561.0,39560.0,1.8562186]
[1646536401577,0.12055636,39561.0,39560.0,1.4796296]
[1646536401978,0.12055636,39561.0,39560.0,1.2731289]
[1646536402378,0.12055636,39561.0,39560.0,1.6497179]
[1646536402779,0.12055636,39561.0,39560.0,1.2731289]
[1646536404128,0.12055636,39561.0,39560.0,1.6497179]
[1646536404528,0.12055636,39561.0,39560.0,1.2731289]
[1646536404726,0.12055636,39561.0,39560.0,1.7193379]
[1646536406929,0.12055636,39561.0,39560.0,1.3427489]
[1646536407329,0.12055636,39561.0,39560.0,1.7193379]
[1646536407576,0.12055636,39561.0,39560.0,1.3427489]
[1646536407776,0.12035433,39561.0,39560.0,1.3427489]
[1646536408576,0.12035433,39561.0,39560.0,1.2731289]
[1646536415201,0.8,39560.0,39557.0,5.1116756]
[1646536415387,0.25912177,39558.0,39557.0,1.31420692]
[1646536415585,0.25912177,39558.0,39548.0,0.20651594]
[1646536415586,0.69127169,39556.0,39548.0,0.20651594]
[1646536415784,0.69127169,39556.0,39546.0,0.20651594]
[1646536415785,0.20734736,39550.0,39546.0,0.20651594]
[1646536415984,0.72754111,39549.0,39539.0,0.25801206]
[1646536416192,0.2073798,39545.0,39539.0,0.25801206]
[1646536416387,0.46835691,39549.0,39537.0,0.25801206]
[1646536416388,0.2073798,39543.0,39537.0,0.25801206]
[1646536416584,0.2073798,39543.0,39530.0,0.12735685]
[1646536416585,0.48572695,39542.0,39536.0,0.25801206]
[1646536416783,0.53622695,39542.0,39536.0,0.25801206]
[1646536416983,0.53622695,39542.0,39531.0,0.25801206]
[1646536417585,0.31554632,39541.0,39531.0,0.25801206]
[1646536418088,0.22068063,39542.0,39531.0,0.25801206]
[1646536418286,0.33358876,39541.0,39537.0,0.20546644]
[1646536418490,0.33358876,39541.0,39529.0,0.25801206]
[1646536419134,0.33358876,39541.0,39533.0,0.00025283]
[1646536420232,0.33358876,39541.0,39535.0,0.00025283]
[1646536421432,0.33358876,39541.0,39536.0,0.00025282]
[1646536422437,0.33358876,39541.0,39528.0,0.17629801]
[1646536422681,0.33358876,39541.0,39537.0,0.00025282]
[1646536423680,0.33358876,39541.0,39534.0,0.21058672]
[1646536423887,0.33358876,39541.0,39537.0,0.00024508]
[1646536424883,0.33358876,39541.0,39533.0,0.20162386]
[1646536425083,0.33358876,39541.0,39537.0,0.00024508]
[1646536426082,0.33358876,39541.0,39532.0,0.1950756]
[1646536426327,0.33358876,39541.0,39528.0,0.17629801]
[1646536426530,0.33358876,39541.0,39537.0,0.00024508]
[1646536427327,0.33358876,39541.0,39528.0,0.17629801]
[1646536427529,0.33358876,39541.0,39537.0,0.0002361]
[1646536428631,0.33358876,39541.0,39530.0,0.18900694]
[1646536428831,0.33358876,39541.0,39537.0,0.0002361]
[1646536429836,0.35022876,39545.0,39530.0,0.18900694]
[1646536430078,0.40072876,39545.0,39539.0,0.1520555]
[1646536430280,0.06714,39545.0,39539.0,0.1520555]
[1646536430784,0.004,39545.0,39539.0,0.1520555]
[1646536430984,0.2861165,39547.0,39539.0,0.1520555]
[1646536430985,0.1202,39547.0,39539.0,0.1520555]
[1646536431180,0.34622876,39549.0,39540.0,0.0002367]
[1646536431379,0.33358876,39549.0,39540.0,0.0002367]
[1646536431580,0.33358876,39547.0,39540.0,0.0002367]
[1646536431782,0.34622876,39550.0,39540.0,0.0002367]
[1646536432179,0.34622876,39550.0,39539.0,0.1520555]
[1646536432380,0.33358876,39550.0,39543.0,0.00023669]
[1646536433379,0.33358876,39550.0,39539.0,0.1520555]
[1646536433579,0.33358876,39550.0,39545.0,0.00023669]
[1646536434229,0.01264,39549.0,39545.0,0.00023669]
[1646536434629,0.01264,39549.0,39539.0,0.1520555]
[1646536434829,0.01264,39549.0,39545.0,0.00023664]
[1646536435032,0.25,39548.0,39539.0,0.15166906]
[1646536435330,0.01264,39547.0,39539.0,0.15166906]
[1646536435528,0.01264,39550.0,39539.0,0.15166906]
[1646536438283,0.01264,39550.0,39543.0,0.0002528]
[1646536439379,0.01264,39550.0,39539.0,0.15166906]
[1646536439583,0.01264,39550.0,39543.0,0.0002528]
[1646536440585,0.01264,39550.0,39539.0,0.15166906]
[1646536440785,0.01264,39550.0,39543.0,0.0002528]
[1646536441655,0.01264,39550.0,39539.0,0.15166906]
[1646536442056,0.01264,39550.0,39543.0,0.0002528]
[1646536443157,0.01264,39550.0,39543.0,0.00023671]
[1646536444157,0.01264,39550.0,39539.0,0.15166906]
[1646536444358,0.01264,39550.0,39543.0,0.00023671]
[1646536445382,0.01264,39550.0,39539.0,0.15166906]
[1646536445581,0.20279635,39549.0,39543.0,0.00023671]
[1646536445781,0.33358876,39548.0,39543.0,0.00023671]
[1646536446583,0.33358876,39548.0,39536.0,0.21159049]
[1646536446782,0.33358876,39548.0,39543.0,0.00022874]
[1646536447682,0.33358876,39548.0,39530.0,0.1238]
[1646536447683,0.123,39547.0,39530.0,0.1238]
[1646536447884,0.33358876,39546.0,39543.0,0.00023037]
[1646536448492,0.0505,39545.0,39543.0,0.00023037]
[1646536448685,0.34622876,39544.0,39543.0,0.00023037]
[1646536448932,0.34622876,39544.0,39530.0,0.1238]
[1646536449128,0.34622876,39544.0,39542.0,0.00023037]
[1646536450130,0.34622876,39544.0,39530.0,0.1238]
[1646536450329,0.34622876,39544.0,39541.0,0.00022279]
[1646536451328,0.34622876,39544.0,39530.0,0.1238]
[1646536451730,0.34622876,39544.0,39541.0,0.00022289]
[1646536451931,1.05,39542.0,39530.0,0.11902289]
[1646536452131,0.38408876,39541.0,39530.0,0.11902289]
[1646536452332,0.01264,39540.0,39530.0,0.11902289]
[1646536452584,0.0505,39539.0,39530.0,0.11902289]
[1646536452786,0.33358876,39538.0,39530.0,0.11902289]
[1646536452984,0.20307751,39537.0,39526.0,0.000121]
[1646536453286,0.33358876,39536.0,39526.0,0.000121]
[1646536453583,0.0505,39535.0,39526.0,0.000121]
[1646536453783,0.33358876,39534.0,39526.0,0.000121]
[1646536453984,0.33358876,39534.0,39529.0,0.00012741]
[1646536454185,0.38408876,39534.0,39529.0,0.00012741]
[1646536454388,0.0505,39534.0,39529.0,0.00012741]
[1646536454985,0.33358876,39533.0,39526.0,0.000121]
[1646536455187,0.33358876,39533.0,39530.0,0.00023797]
[1646536455494,0.0505,39533.0,39530.0,0.00023797]
[1646536455690,0.33358876,39532.0,39530.0,0.00023797]
[1646536455889,0.28173171,39531.0,39530.0,0.00023797]
[1646536456089,0.38408876,39531.0,39530.0,0.00023797]
[1646536456338,0.38408876,39531.0,39529.0,0.00023797]
[1646536456536,0.33358876,39530.0,39529.0,0.00023797]
[1646536457037,0.38408876,39530.0,39529.0,0.00023797]
[1646536457441,0.38408876,39530.0,39526.0,0.000121]
[1646536457640,0.38408876,39530.0,39528.0,0.00023711]
[1646536457840,0.33358876,39529.0,39528.0,0.00023711]
[1646536458040,0.38408876,39529.0,39528.0,0.00023711]
[1646536458639,0.38408876,39529.0,39526.0,0.000121]
[1646536458841,0.38408876,39529.0,39527.0,0.00023711]
[1646536459038,0.34622876,39528.0,39527.0,0.00023711]
[1646536459438,0.39672876,39528.0,39527.0,0.00023711]
[1646536459638,0.49672876,39528.0,39527.0,0.00023711]
[1646536459838,0.48408876,39528.0,39526.0,0.000121]
[1646536460088,0.43358876,39527.0,39526.0,0.00035812]
[1646536460285,1.20708876,39527.0,39526.0,0.00035812]
[1646536460491,0.48408876,39527.0,39526.0,0.00035812]
[1646536460691,0.65000526,39527.0,39526.0,0.00035812]
[1646536460886,0.48408876,39527.0,39526.0,0.000121]
[1646536461288,0.49672876,39527.0,39526.0,0.000121]
[1646536462687,1.77022876,39527.0,39526.0,0.000121]
[1646536463091,1.16264526,39527.0,39526.0,0.000121]
[1646536465134,0.00057603,39517.0,39514.0,0.22241693]
[1646536466335,0.00057603,39517.0,39516.0,0.21415181]
[1646536467337,0.00057603,39517.0,39514.0,0.22241693]
[1646536467592,0.00057603,39517.0,39514.0,0.04]
[1646536468291,0.00057603,39517.0,39514.0,0.0402529]
[1646536469291,0.00057603,39517.0,39514.0,0.04]
[1646536469692,0.00057603,39517.0,39514.0,0.0402529]
[1646536470493,0.05107603,39517.0,39514.0,0.04]
[1646536470695,0.33358876,39516.0,39514.0,0.04]
[1646536470893,0.0505,39515.0,39514.0,0.0402529]
[1646536471381,0.38408876,39515.0,39514.0,0.0402529]
[1646536471662,0.38408876,39515.0,39502.0,0.00101192]
[1646536471666,1.94200691,39515.0,39502.0,0.00101192]
[1646536471862,1.94200691,39515.0,39495.0,0.001]
[1646536471863,0.7735,39508.0,39495.0,0.001]
[1646536472062,1.4048,39506.0,39495.0,0.001]
[1646536472262,1.4048,39506.0,39493.0,0.001]
[1646536472263,0.7735,39504.0,39493.0,0.001]
[1646536472461,0.7735,39502.0,39493.0,0.001]
[1646536472662,0.38408876,39501.0,39493.0,0.001]
[1646536472865,0.13782307,39497.0,39492.0,0.1520186]
[1646536473065,0.13782307,39493.0,39492.0,0.1520186]
[1646536473263,0.0505,39493.0,39489.0,0.00049854]
[1646536474263,0.0505,39493.0,39489.0,0.17580035]
[1646536474465,0.0505,39493.0,39489.0,0.17592499]
[1646536475487,0.0505,39493.0,39487.0,0.19957836]
[1646536475488,0.0505,39493.0,39487.0,0.001]
[1646536476687,0.0505,39493.0,39488.0,0.00023956]
[1646536477488,0.0505,39493.0,39489.0,0.19930481]
[1646536478190,0.0505,39493.0,39489.0,0.19954437]
[1646536479040,0.001,39496.0,39489.0,0.19930481]
[1646536479240,0.06315,39498.0,39492.0,0.19116482]
[1646536479640,0.0505,39498.0,39492.0,0.19116482]
[1646536479846,0.0505,39498.0,39495.0,0.1855069]
[1646536480047,0.01764,39502.0,39496.0,0.70242185]
[1646536480249,0.005,39502.0,39496.0,0.401899]
[1646536480849,0.005,39502.0,39500.0,0.02531]
[1646536481142,0.005,39502.0,39501.0,0.55988762]
[1646536481344,0.33223504,39512.0,39501.0,0.23993623]
[1646536481541,0.08045362,39513.0,39501.0,0.15798862]
[1646536481941,0.33223504,39512.0,39501.0,0.15798862]
[1646536482783,0.33223504,39512.0,39505.0,0.00023489]
[1646536483787,0.33223504,39512.0,39491.0,0.32599515]
[1646536483788,0.01264,39511.0,39491.0,0.32599515]
[1646536483989,0.06314,39511.0,39507.0,0.00023489]
[1646536484186,0.33223504,39510.0,39507.0,0.00023489]
[1646536484484,0.0505,39509.0,39507.0,0.00023489]
[1646536484684,0.33223504,39508.0,39507.0,0.00023489]
[1646536484884,0.38273504,39508.0,39507.0,0.00023489]
[1646536485086,0.38273504,39508.0,39496.0,0.16262106]
[1646536485284,0.38273504,39508.0,39506.0,0.00023489]
[1646536485485,0.33223504,39507.0,39506.0,0.00023489]
[1646536486185,0.33223504,39507.0,39496.0,0.16262106]
[1646536486441,0.33223504,39507.0,39505.0,0.00023489]
[1646536486643,0.0505,39506.0,39505.0,0.00023489]
[1646536486840,0.38273504,39506.0,39505.0,0.00023489]
[1646536487442,0.38273504,39506.0,39497.0,0.15147002]
[1646536487641,0.38273504,39506.0,39504.0,0.0002354]
[1646536487841,0.33223504,39505.0,39504.0,0.0002354]
[1646536488740,0.33223504,39505.0,39496.0,0.16262106]
[1646536488943,0.33223504,39505.0,39503.0,0.00023541]
[1646536489943,0.33223504,39505.0,39496.0,0.16262106]
[1646536490187,0.33223504,39505.0,39502.0,0.00023541]
[1646536491080,0.33223504,39505.0,39496.0,0.16356283]
[1646536491081,0.33223504,39505.0,39499.0,0.20760827]
[1646536491281,0.33223504,39505.0,39496.0,0.16262106]
[1646536491282,0.34487504,39508.0,39502.0,0.00023534]
[1646536492281,0.34487504,39508.0,39496.0,0.16262106]
[1646536492480,0.34487504,39508.0,39503.0,0.00023534]
[1646536493181,0.34487504,39508.0,39503.0,0.00016397]
[1646536493384,0.34487504,39508.0,39502.0,0.17942066]
[1646536493585,0.34487504,39508.0,39490.0,0.4582]
[1646536493855,0.34487504,39508.0,39490.0,0.3082]
[1646536494258,0.34487504,39508.0,39498.0,0.18014401]
[1646536494455,0.34487504,39508.0,39496.0,0.1665006]
[1646536494855,0.34487504,39508.0,39501.0,0.00012431]
[1646536495058,0.33275251,39495.0,39491.0,0.53232707]
[1646536495256,0.33275251,39495.0,39494.0,0.21306081]
[1646536505392,0.33275251,39495.0,39494.0,0.58964981]
[1646536505799,0.33275251,39495.0,39494.0,0.66545981]
[1646536505998,0.33275251,39495.0,39494.0,0.75132981]
[1646536506995,0.33275251,39495.0,39494.0,0.66545981]
[1646536509241,0.33275251,39495.0,39494.0,0.68737193]
[1646536509845,0.33275251,39495.0,39494.0,1.01961079]
[1646536510447,0.33275251,39495.0,39494.0,0.96911079]
[1646536512446,0.33275251,39495.0,39494.0,0.56721179]
[1646536514895,0.33275251,39495.0,39494.0,0.23497293]
[1646536515494,0.33275251,39495.0,39494.0,0.02191212]
[1646536516746,0.33275251,39495.0,39494.0,0.19837374]
[1646536516942,0.33275251,39495.0,39494.0,0.57496274]
[1646536518345,0.33275251,39495.0,39494.0,0.19837374]
[1646536521695,0.33275251,39495.0,39494.0,0.57496274]
[1646536522097,0.33275251,39495.0,39494.0,0.19837374]
[1646536522300,0.33268897,39495.0,39494.0,0.19837374]
[1646536522501,0.33268897,39495.0,39494.0,0.57496274]
[1646536524340,0.33268897,39495.0,39494.0,0.57488201]
[1646536524741,0.33268897,39495.0,39494.0,0.89624554]
[1646536524941,0.33268897,39495.0,39494.0,0.90712087]
[1646536526240,0.33268897,39495.0,39494.0,0.19829301]
[1646536526441,0.33268897,39495.0,39494.0,0.57488201]
[1646536527589,0.33268897,39495.0,39494.0,0.63924124]
[1646536527789,0.33268897,39495.0,39494.0,0.5948911]
[1646536527990,0.33268897,39495.0,39494.0,0.9714801]
[1646536529389,0.33268897,39495.0,39494.0,0.90712087]
[1646536529790,0.33268897,39495.0,39494.0,0.57488201]
[1646536529989,0.33268897,39495.0,39494.0,0.19829301]
[1646536530189,0.33268897,39495.0,39494.0,0.57488201]
[1646536530592,0.33268897,39495.0,39494.0,0.02183139]
[1646536539949,0.04353877,39493.0,39489.0,0.376589]
[1646536540151,0.04353877,39493.0,39492.0,0.376589]
[1646536541352,0.04353877,39493.0,39488.0,0.376589]
[1646536543797,0.04353877,39493.0,39488.0,0.73975557]
[1646536544101,0.04353877,39493.0,39489.0,0.00025122]
[1646536544297,0.04353877,39493.0,39490.0,0.376589]
[1646536545297,0.04353877,39493.0,39492.0,0.18149857]
[1646536545497,0.04353877,39493.0,39492.0,0.55808757]
[1646536547841,0.04353877,39493.0,39492.0,0.376589]
[1646536549147,0.04353877,39493.0,39491.0,0.0002464]
[1646536549341,0.04353877,39493.0,39492.0,0.376589]
[1646536549641,0.04353877,39493.0,39491.0,0.0002464]
[1646536549841,0.04353877,39493.0,39492.0,0.376589]
[1646536561758,0.04343167,39493.0,39492.0,0.376589]
[1646536571953,0.04343167,39493.0,39491.0,0.00021972]
[1646536572156,0.04343167,39493.0,39487.0,0.001]
[1646536572157,0.00043943,39490.0,39487.0,0.001]
[1646536574003,0.00043943,39490.0,39487.0,0.00112452]
[1646536574504,0.33223886,39492.0,39487.0,0.00112452]
[1646536574505,0.3164698,39492.0,39487.0,0.00112452]
[1646536574705,0.3136998,39492.0,39487.0,0.00112452]
[1646536575108,0.3136998,39492.0,39487.0,0.001]
[1646536575311,0.3136998,39492.0,39488.0,0.00012452]
[1646536576350,0.3136998,39492.0,39487.0,0.001]
[1646536576552,0.3136998,39492.0,39488.0,0.00023656]
[1646536577552,0.3136998,39492.0,39487.0,0.001]
[1646536577752,0.3136998,39492.0,39488.0,0.00023957]
[1646536578754,0.3136998,39492.0,39487.0,0.001]
[1646536578953,0.3136998,39492.0,39488.0,0.00023957]
[1646536578954,0.0505,39491.0,39488.0,0.00023957]
[1646536579155,0.33073826,39490.0,39488.0,0.00023957]
[1646536579355,0.0505,39489.0,39488.0,0.00023957]
[1646536579554,0.38123826,39489.0,39488.0,0.00023957]
[1646536579954,0.38123826,39489.0,39487.0,0.001]
[1646536580207,0.33073826,39488.0,39487.0,0.00012753]
[1646536580412,0.538246,39488.0,39487.0,0.00012753]
[1646536580614,0.0002361,39486.0,39481.0,0.00051021]
[1646536580804,0.0505,39485.0,39481.0,0.00051021]
[1646536581011,0.33073826,39484.0,39481.0,0.00051021]
[1646536581205,0.0505,39483.0,39467.0,0.124]
[1646536581407,0.33073826,39482.0,39467.0,0.124]
[1646536581704,0.0505,39481.0,39467.0,0.124]
[1646536581905,0.33073826,39480.0,39467.0,0.124]
[1646536582106,0.33073826,39480.0,39466.0,0.1700411]
[1646536582306,0.0505,39479.0,39466.0,0.1700411]
[1646536582505,0.0505,39479.0,39470.0,0.18842995]
[1646536583308,0.38123826,39479.0,39466.0,0.1700411]
[1646536583509,0.38123826,39479.0,39463.0,0.187]
[1646536583955,0.38123826,39479.0,39464.0,0.33073826]
[1646536584354,0.38123826,39479.0,39469.0,0.18885202]
[1646536584551,0.38123826,39479.0,39465.0,0.18403836]
[1646536584754,0.37873826,39479.0,39465.0,0.18403836]
[1646536584953,0.37873826,39479.0,39477.0,0.0002516]
[1646536585955,0.37873826,39479.0,39465.0,0.18403836]
[1646536586154,0.37873826,39479.0,39477.0,0.0002516]
[1646536586656,0.39373826,39479.0,39477.0,0.0002516]
[1646536587053,0.39373826,39479.0,39468.0,0.182507]
[1646536587254,0.39373826,39479.0,39477.0,0.0002516]
[1646536587698,0.40638826,39479.0,39477.0,0.0002516]
[1646536587898,1.17988826,39479.0,39477.0,0.0002516]
[1646536588302,1.17988826,39479.0,39465.0,0.29110617]
[1646536588499,1.42988826,39479.0,39477.0,0.0002516]
[1646536589500,1.42988826,39479.0,39469.0,0.17680398]
[1646536589699,1.42988826,39479.0,39477.0,0.00024315]
[1646536590301,0.50638826,39479.0,39477.0,0.00024315]
[1646536590701,0.50638826,39479.0,39464.0,0.18359427]
[1646536590702,1.27988826,39479.0,39464.0,0.18359427]
[1646536591004,1.27988826,39479.0,39478.0,0.035]
[1646536591872,1.27988826,39479.0,39478.0,0.02792528]
[1646536592673,1.39150248,39479.0,39478.0,0.02792528]
[1646536593075,1.54320107,39479.0,39478.0,0.02792528]
[1646536593476,1.59319965,39479.0,39478.0,0.02792528]
[1646536594976,1.9752,39478.0,39477.0,0.00023522]
[1646536595201,2.39998263,39478.0,39477.0,0.00023522]
[1646536595604,2.56619504,39478.0,39462.0,0.0011]
[1646536595804,0.9252,39475.0,39470.0,0.00094101]
[1646536596005,1.16601726,39474.0,39470.0,0.00094101]
[1646536596205,1.26601726,39474.0,39470.0,0.00094101]
[1646536596805,1.26601726,39474.0,39464.0,0.15081514]
[1646536597007,0.49251726,39474.0,39470.0,0.00023559]
[1646536597807,0.50751726,39474.0,39470.0,0.00023559]
[1646536599148,0.50751726,39474.0,39464.0,0.15811248]
[1646536599353,0.50751726,39474.0,39470.0,0.00023559]
[1646536600352,0.50751726,39474.0,39462.0,0.0011]
[1646536600553,0.50751726,39474.0,39470.0,0.00023557]
[1646536600750,0.32936726,39473.0,39470.0,0.00023557]
[1646536600952,0.01265,39472.0,39470.0,0.00023557]
[1646536601552,0.01265,39472.0,39462.0,0.0011]
[1646536601750,0.01265,39472.0,39469.0,0.00023557]
[1646536601952,0.0505,39471.0,39469.0,0.00023557]
[1646536602159,0.0505,39471.0,39463.0,0.00094241]
[1646536602160,0.00047113,39468.0,39463.0,0.00094241]
[1646536602353,0.00679153,39458.0,39454.0,0.0011]
[1646536602600,0.00340153,39458.0,39456.0,0.16532032]
[1646536602800,0.00340153,39458.0,39456.0,0.35795439]
[1646536605800,0.01840153,39458.0,39456.0,0.35795439]
[1646536606659,0.01795753,39458.0,39456.0,0.35795439]
[1646536608966,0.00047113,39468.0,39457.0,0.18411596]
[1646536609169,0.00047113,39468.0,39463.0,0.376589]
[1646536609361,0.00047113,39468.0,39464.0,0.0505]
[1646536609561,0.00047113,39468.0,39465.0,0.376589]
[1646536609761,0.00047113,39468.0,39467.0,0.18411032]
[1646536609962,0.00047113,39468.0,39467.0,0.34410509]
[1646536610207,0.00047113,39468.0,39467.0,0.78411446]
[1646536611208,0.00047113,39468.0,39467.0,0.40752546]
[1646536611407,0.00047113,39468.0,39467.0,0.78411446]
[1646536612014,0.00047113,39468.0,39467.0,1.1996119]
[1646536612211,0.00047113,39468.0,39467.0,2.0236119]
[1646536612807,0.00047113,39468.0,39467.0,2.0362719]
[1646536615248,0.00047113,39468.0,39467.0,2.0236119]
[1646536615649,0.00047113,39468.0,39467.0,2.0362619]
[1646536618004,0.00047113,39468.0,39467.0,1.86107446]
[1646536618205,0.00047113,39468.0,39467.0,1.07492446]
[1646536618404,0.00047113,39468.0,39467.0,1.00992446]
[1646536619403,0.00047113,39468.0,39467.0,0.98461446]
[1646536619905,0.00023508,39469.0,39468.0,1.126589]
[1646536620503,0.00023508,39469.0,39468.0,0.376589]
[1646536620704,0.54326082,39485.0,39467.0,0.21342037]
[1646536620908,0.33599529,39485.0,39474.0,0.20828863]
[1646536621654,0.20726553,39484.0,39474.0,0.20828863]
[1646536621851,0.32787416,39483.0,39474.0,0.20828863]
[1646536622053,0.32787416,39483.0,39470.0,0.1612629]
[1646536622256,0.00023504,39481.0,39470.0,0.1612629]
[1646536622452,0.00023504,39481.0,39474.0,0.25]
[1646536623051,0.00023504,39481.0,39474.0,0.42193529]
[1646536623256,0.32787416,39483.0,39474.0,0.25]
[1646536623453,0.00023586,39479.0,39474.0,0.25]
[1646536624253,0.21991553,39482.0,39474.0,0.25]
[1646536624553,0.005,39481.0,39474.0,0.25]
[1646536624755,0.00023586,39478.0,39474.0,0.25]
[1646536625423,0.00023586,39478.0,39474.0,0.42058561]
[1646536625624,0.20726553,39481.0,39474.0,0.42058561]
[1646536625922,0.00023587,39478.0,39474.0,0.25]
[1646536626824,0.20726553,39482.0,39474.0,0.25]
[1646536627024,0.00023581,39478.0,39474.0,0.25]
[1646536628025,0.32787416,39481.0,39474.0,0.25]
[1646536628225,0.00023581,39478.0,39474.0,0.41625231]
[1646536629054,0.32787416,39481.0,39474.0,0.41625231]
[1646536629259,0.21026553,39482.0,39474.0,0.25]
[1646536629456,0.00023581,39478.0,39474.0,0.25]
[1646536630358,0.001,39482.0,39476.0,0.19295285]
[1646536630557,0.00023581,39478.0,39476.0,0.19295285]
[1646536630757,0.00023581,39478.0,39476.0,0.39188278]
[1646536630957,0.00023581,39478.0,39476.0,0.19295285]
[1646536631558,0.001,39482.0,39476.0,0.19295285]
[1646536631757,0.00023581,39479.0,39476.0,0.19295285]
[1646536632359,0.11111696,39471.0,39470.0,0.58908044]
[1646536632609,0.11111696,39471.0,39470.0,0.79085141]
[1646536636207,0.11111696,39471.0,39470.0,0.81616141]
[1646536637052,0.11111696,39471.0,39470.0,0.79085141]
[1646536638554,0.11111696,39471.0,39470.0,1.04085141]
[1646536644058,0.11111696,39471.0,39470.0,1.09135141]
[1646536644453,0.11111696,39471.0,39470.0,2.16253439]
[1646536644660,0.00023636,39472.0,39471.0,1.84881]
[1646536644856,0.0002361,39486.0,39484.0,0.15718636]
[1646536645257,0.0002361,39486.0,39485.0,0.58636625]
[1646536645858,0.0002361,39486.0,39485.0,0.376589]
[1646536646055,0.0002361,39486.0,39484.0,0.15718636]
[1646536647911,0.0002361,39486.0,39481.0,0.0505]
[1646536648516,0.0002361,39486.0,39484.0,0.25]
[1646536648713,0.00023626,39485.0,39484.0,0.25]
[1646536649511,0.0002361,39486.0,39484.0,0.25]
[1646536649711,0.32872412,39486.0,39484.0,0.25]
[1646536649911,0.32896037,39486.0,39484.0,0.25]
[1646536650813,0.53591866,39486.0,39484.0,0.25]
[1646536651017,0.32848802,39485.0,39484.0,0.25]
[1646536651215,0.4425723,39482.0,39474.0,0.1158]
[1646536651474,0.32934344,39481.0,39473.0,0.1989]
[1646536651672,0.32934344,39481.0,39468.0,0.1158]
[1646536651875,0.32934344,39481.0,39469.0,0.376589]
[1646536652072,0.32934344,39481.0,39474.0,0.15076122]
[1646536652277,0.00023628,39476.0,39468.0,0.33513326]
[1646536652473,0.00023628,39476.0,39469.0,0.376589]
[1646536653074,0.93815237,39482.0,39469.0,0.376589]
[1646536653274,0.93815237,39482.0,39472.0,0.16556726]
[1646536653480,0.00023629,39474.0,39473.0,0.376589]
[1646536654376,0.97904619,39482.0,39473.0,0.376589]
[1646536654577,0.00023629,39475.0,39472.0,0.16556726]
[1646536654876,0.00023629,39475.0,39473.0,0.376589]
[1646536655506,0.97904619,39482.0,39472.0,0.16556726]
[1646536655701,0.20713045,39481.0,39472.0,0.16556726]
[1646536655902,0.00023629,39476.0,39472.0,0.16556726]
[1646536656205,0.00023629,39476.0,39469.0,0.376589]
[1646536656400,0.00023629,39476.0,39469.0,0.379589]
[1646536656902,0.32934344,39480.0,39469.0,0.003]
[1646536657105,0.00023629,39474.0,39470.0,0.376589]
[1646536657303,0.00023629,39474.0,39470.0,0.54972016]
[1646536657904,0.53647389,39480.0,39470.0,0.54972016]
[1646536658103,0.00023629,39474.0,39470.0,0.17313116]
[1646536658303,0.00023629,39474.0,39471.0,0.376589]
[1646536659256,0.32934344,39480.0,39470.0,0.42313116]
[1646536659458,0.00023629,39474.0,39471.0,0.376589]
[1646536660259,0.53647389,39480.0,39472.0,0.376589]
[1646536660457,0.53647389,39480.0,39470.0,0.42313116]
[1646536660658,0.00023629,39474.0,39471.0,0.376589]
[1646536661360,0.00023629,39474.0,39472.0,0.376589]
[1646536661556,0.53647389,39480.0,39470.0,0.42313116]
[1646536661757,0.00023629,39474.0,39470.0,0.42313116]
[1646536661957,0.00023629,39474.0,39470.0,0.25]
[1646536662359,0.00023629,39474.0,39468.0,0.1158]
[1646536662360,0.30409813,39469.0,39468.0,0.1158]
[1646536662618,0.30409813,39469.0,39466.0,0.376589]
[1646536663014,0.30409813,39469.0,39465.0,0.003]
[1646536663916,0.30409813,39469.0,39464.0,0.19110925]
[1646536664113,0.30433443,39469.0,39464.0,0.19110925]
[1646536665114,0.30409813,39469.0,39464.0,0.19110925]
[1646536665513,0.30433443,39469.0,39464.0,0.19110925]
[1646536666360,0.30409813,39469.0,39464.0,0.19110925]
[1646536666759,0.30433443,39469.0,39464.0,0.19110925]
[1646536667462,0.30409813,39469.0,39465.0,0.376589]
[1646536667864,0.30433443,39469.0,39465.0,0.376589]
[1646536668662,0.30409813,39469.0,39465.0,0.376589]
[1646536668964,0.30409813,39469.0,39465.0,0.626589]
[1646536668965,0.30433444,39469.0,39465.0,0.626589]
[1646536669165,0.30433444,39469.0,39466.0,0.0505]